{"text_format":"3","workbook":"xlsx","n_sheets":1,"sheets":["Kriterienkatalog A-Prüferlizenz"],"read":"whole","date_system":"1900"}

{"sheet":"Kriterienkatalog A-Prüferlizenz","index":0,"n_rows":90,"n_cols":8,"rows_kept":90,"merged":[[72,1,72,2],[74,1,74,2],[76,1,76,2],[80,1,80,2]]}
[null,"Kriterienkatalog für A-Prüferlizenzen"]
[]
["Grundsätzliche Richtlinien:"]
["Ein rechtlicher Anspruch für eine A-Prüferlizenz besteht nicht und ergibt sich nicht automatisch."]
["Die Erteilung einer A-Prüferlizenz wird durch die/den Stilrichtung/Prüfungsbereich erteilt und ist eine Auszeichnung für den Karateka. "]
["Es handelt sich bei jeder Erteilung immer um eine Einzelentscheidung."]
["Der/die Antragsteller/in wird verpflichtet die geforderten Angaben durch Unterlagen zu belegen."]
["Alle Angaben sind von der/dem jeweiligen Stilrichtung/Prüfungsbereich Land zwingend zu prüfen."]
["Diese Bewertungskriterien sind ohne Ausnahme für den/die Antragsteller/in gleich und dienen der Beurteilung ohne Ansehen der Person. "]
["Die Felder sind nach Prüfung der Unterlagen  vom Vorsitzenden auszufüllen."]
["Die eingereichten Unterlagen werden in Kopien an den DKV-Antrag angeheftet."]
["Für den Erwerb der A-Lizenz sind 5 Jahre aktive Tätigkeit als B-Prüfer in der Stilrichtung Voraussetzung."]
["Für Neumitglieder aus fremden Verbänden besteht 5 Jahre Sperrfrist für einen solchen Antrag."]
["Dieser Kriterienkatalog ist für alle Stilrichtungen/Prüfungsbereiche im DKV verpflichtend."]
["Des Weiteren gilt die Verfahrensordnung des DKV."]
[{"$nulls":4}," "]
["Die einzelnen Leistungen und Zugehörigkeiten werden über ein Punktesystem bewertet.",null,"Punke","Alter","Wartezeit","DKV-Mitglied"]
["Mindestpunktzahl, Mindestalter, Wartezeit, Mitgliedschaft",null,15,"siehe VO","1 Jahre","5 Jahre"]
[]
["Name Antragsteller/in:"]
["Geburtsdatum:"]
["Alter:",{"$f":"IF(B21=\"\",\"\",(TODAY()-B21)/365.25)","v":""}]
["Verein:"]
["Mitglied im DKV seit:"]
["DKV-Mitgliedsnummer:"]
["E-Mail:"]
["Telefon:"]
["Dan-Grad (Antrag 1 Jahr Wartezeit ab 5./6. Dan):",null,"DKV-Meldungen einer Stilrichtung/SOK im DKV < 5000 5. Dan, > 5000 6. Dan."]
[]
["Prüferlizenz Stilrichtung:"]
["B-Lizenz von - bis"]
[]
["Prüferlizenz weiterer Stilrichtung:"]
["A-Lizenz von - bis"]
[]
[{"$nulls":3},"Bei den Punkten gibt es keine Addition"]
["Trainerlizenzen:","Nur gültige Lizenzen, C, B, u. A, nur die höchste zählt.","Punkte:",1,2,3,4,5]
["DKV- Karatelehrer/in","von-bis",{"$f":"SUM(D38:H38)","v":0},null,0,0,0,0]
["DKV-Gewaltschutztrainer/in","von-bis",0,null,0,0,0,0]
["Sound-Karatetrainer","von-bis",0,null,0,0,0,0]
["Gesundheitstrainer","von-bis",0,null,0,0,0,0]
["C-Lizenz ","von-bis",0,0,null,0,0,0]
["B-Lizenz ","von-bis",0,0,0,null,0,0]
["A-Lizenz Breitensport ","von-bis",0,0,0,0,null,0]
["A-Lizenz Leistungssport ","von-bis",0,0,0,0,0]
["Zwischensumme:",null,{"$f":"SUM(C38:C45)","v":0}]
[]
[{"$nulls":3},"Bei den Punkten gibt es keine Addition"]
["Verein/Dojo:","Bei mehrfach Tätigkeit steigende Punktzahlen.","Punkte:",1,2,3,4]
["Vorstand/Trainer","bis 5 J., bis 10 J., bis 15 J.",{"$f":"SUM(D50:G50)","v":0},{"$nulls":3},0]
["Trainererfolge","Land, Bund, International",{"$f":"SUM(D51:G51)","v":0},{"$nulls":3},0]
["DKV-Mitgliederzahlen","bis 50, bis 100, bis 150, über 150",{"$f":"SUM(D52:G52)","v":0}]
["Hervorgebrachte Dan-Träger","bis 5, bis 10, bis 15, über 15 ",{"$f":"SUM(D53:G53)","v":0}]
["Zwischensumme:",null,{"$f":"SUM(C50:C53)","v":0}]
[]
[{"$nulls":3},"Bei den Punkten gibt es keine Addition"]
["Landesverband:","Bei mehrfach Tätigkeit steigende Punktzahlen.","Punkte:",1,2,3]
["Geschäftsführendes Präsidium","bis 4 J., bis 8 J., über 8 J., ",{"$f":"SUM(D58:G58)","v":0}]
["Erweitertes Präsidium","bis 4 J., bis 8 J., bis 12 J.",{"$f":"SUM(D59:G59)","v":0}]
["Referent/in","bis 4 J., bis 8 J., bis 12 J.",{"$f":"SUM(D60:G60)","v":0}]
["Landestrainer/in","bis 5 J., bis 10 J., bis 15 J.",{"$f":"SUM(D61:G61)","v":0}]
["Lehrgangstrainer/in vom LV",null,{"$f":"SUM(D62:G62)","v":0},null,0,0]
["Zwischensumme:",null,{"$f":"SUM(C58:C62)","v":0}]
["Endsumme:",null,{"$f":"C46+C54+C63","v":0}]
[]
[]
[null,"Alle Angaben sind wahrheitsgemäß auszufüllen."]
[null,"Falsche Angaben oder unterlassene Angaben führen zum Verlust der A-Lizenz."]
[]
["Mindestpunktzahl erreicht:",{"$f":"IF(B20=\"\",\"\",IF(C64>=C18,\"JA\",\"NEIN\"))","v":""}]
[]
[]
["Prüfung durchgeführt von:"]
[]
["Stellungnahme Präsidiums LV:"]
[]
["Ort und Datum:"]
[]
[null,"Unterschriften des/der Landesstilrichtungsreferenten/in:"]
[]
[]
[]
["Der Antrag muss unter Einhaltung der vorgegebenen Fristen bei der zuständigen Stilrichtung/Prüfungsbereich im Landesverband eingereicht werden."]
[]
["Antrag:","DKV Antragsformular A-Prüferlizenz"]
["Zusätzliche Anhänge:","Karate-Vita (Lebenslauf)"]
[null,"Dokumente bzw. Passeintragungen über Lizenzen."]
[null,"Durchgängige DKV Jahressichtmarke im Pass, letzten 5 Jahre."]
[]
[null,"Das Ergebnis wird dem/der Antragsteller/in mitgeteilt. "]